fUSD/lending_fUSD_20240118
["ID","MTS","AMOUNT","RATE_DAILY","PERIOD"]
[312066760,1705594261370,-3071.25483433,0.0003419,6]
[312066761,1705594261380,-3071.2548342,0.0003419,6]
[312066762,1705594261391,-3071.2548342,0.0003419,6]
[312066763,1705594261401,-3071.2548342,0.0003419,6]
[312066764,1705594261411,-1000.0,0.000342,2]
[312066765,1705594261421,-1000.0,0.000342,2]
[312066766,1705594261431,-154.92827381,0.000342,7]
[312066767,1705594261443,-500.0,0.000342,3]
[312066768,1705594261453,-150.0,0.000342,6]
[312066769,1705594261464,-4000.0,0.000342,2]
[312066770,1705594261475,-500.0,0.0003422,3]
[312066771,1705594261490,-2052.0,0.00034237,30]
[312066772,1705594261500,-150.0,0.00034239,2]
[312066773,1705594261510,-150.0,0.00034239,2]
[312066774,1705594261521,-500.0,0.0003424,3]
[312066775,1705594261533,-8158.79078492,0.00034244,2]
[312066776,1705594261544,-950.0,0.00034246,7]
[312066777,1705594261553,-75000.0,0.00034247,15]
[312066778,1705594261565,-300.0,0.00034247,10]
[312066779,1705594261574,-300.0,0.00034247,10]
[312066780,1705594261584,-416.64551839,0.00034247,10]
[312066781,1705594261594,-174.0624444,0.00034247,2]
[312066782,1705594261604,-155.38660535,0.00034254,7]
[312066783,1705594261614,-500.0,0.0003426,3]
[312066784,1705594261625,-1500.0,0.00034263,2]
[312066785,1705594261634,-155.38660535,0.00034278,7]
[312066786,1705594261644,-500.0,0.0003428,3]
[312066787,1705594261653,-2833.0,0.00034298,28]
[312066788,1705594261666,-200.0,0.000343,2]
[312066789,1705594261675,-500.0,0.000343,3]
[312066790,1705594261685,-367.93,0.00034301,30]
[312066791,1705594261695,-155.38660535,0.00034305,7]
[312066792,1705594261705,-156.79579039,0.00034306,7]
[312066793,1705594261714,-299.97796228,0.00034317,7]
[312066794,1705594261725,-1315.459092,0.00034318,2]
[312066795,1705594261738,-1238.469382,0.00034318,2]
[312066796,1705594261750,-2791.819976,0.00034318,2]
[312066797,1705594261760,-280.882831,0.00034318,2]
[312066798,1705594261771,-1257.10822,0.00034318,2]
[312066799,1705594261782,-8773.943971,0.00034318,2]
[312066800,1705594261791,-3752.789694,0.00034318,2]
[312066801,1705594261804,-381.196845,0.00034318,2]
[312066802,1705594261814,-1727.491517,0.00034318,2]
[312066803,1705594261824,-1927.966749,0.00034318,2]
[312066804,1705594261834,-5077.409603,0.00034318,2]
[312066805,1705594261843,-450.0,0.00034319,3]
[312066806,1705594261854,-500.0,0.0003432,3]
[312066807,1705594261866,-157.78646479,0.00034329,7]
[312066808,1705594261877,-152.41865415,0.0003434,7]
[312066809,1705594261888,-500.0,0.0003434,3]
[312066810,1705594261898,-468.53300352,0.00034349,2]
[312066811,1705594261908,-160.21827238,0.00034349,7]
[312066812,1705594261919,-6349.39,0.00034359,2]
[312066813,1705594261929,-500.0,0.0003436,3]
[312066814,1705594261938,-500.0,0.0003438,3]
[312066815,1705594261950,-1500.0,0.00034381,2]
[312066816,1705594261963,-299.97796228,0.00034386,7]
[312066817,1705594261975,-150.00508271,0.00034388,7]
[312066818,1705594261987,-500.0,0.000344,3]
[312066819,1705594261997,-150.0,0.0003441,2]
[312066820,1705594262006,-150.0,0.0003441,2]
[312066821,1705594262016,-150.0,0.0003441,2]
[312066822,1705594262026,-150.0,0.0003441,2]
[312066823,1705594262035,-157.78646479,0.00034411,7]
[312066824,1705594262045,-154.92827381,0.00034412,7]
[312066825,1705594262054,-300.0,0.00034415,7]
[312066826,1705594262250,-300.0,0.00034415,7]
[312066827,1705594262272,-24476.37235476,0.00034417,2]
[312066828,1705594262282,-168.58972516,0.00034419,7]
[312066829,1705594262292,-3069447.16531529,0.0003442,18]
[312066830,1705594262301,-500.0,0.0003442,3]
[312066831,1705594262310,-151.0,0.0003442,7]
[312066832,1705594262320,-151.0,0.0003442,7]
[312066833,1705594262329,-3071.2548342,0.00034429,6]
[312066834,1705594262339,-156.79579039,0.00034433,7]
[312066835,1705594262349,-500.0,0.0003444,3]
[312066836,1705594262359,-985.23,0.00034442,2]
[312066837,1705594262368,-299.97796228,0.00034443,7]
[312066838,1705594262377,-500.0,0.0003446,3]
[312066839,1705594262386,-154.92827381,0.00034464,7]
[312066840,1705594262396,-167.97742909,0.00034468,2]
[312066841,1705594262405,-100665.0,0.00034468,2]
[312066842,1705594262414,-448.96409735,0.00034468,2]
[312066843,1705594262423,-1819.0,0.00034468,2]
[312066844,1705594262432,-389.0,0.00034468,2]
[312066845,1705594262441,-500.0,0.0003448,3]
[312066846,1705594262450,-164.04947636,0.00034487,7]
[312066847,1705594262460,-1500.0,0.00034491,2]
[312066848,1705594262469,-1000.0,0.00034493,10]
[312066849,1705594262479,-500.0,0.00034493,10]
[312066850,1705594262489,-500.0,0.00034493,7]
[312066851,1705594262499,-164.04947636,0.00034498,7]
[312066852,1705594262508,-345.92655086,0.000345,2]
[312066853,1705594262517,-374.43833348,0.000345,120]
[312066854,1705594262527,-703.06776754,0.000345,9]
[312066855,1705594262536,-4424.46167598,0.000345,2]
[312066856,1705594262545,-2000.0,0.000345,2]
[312066857,1705594262555,-1000.0,0.000345,7]
[312066858,1705594262564,-500.0,0.000345,3]
[312066859,1705594262574,-152.0,0.00034501,5]
[312066860,1705594262583,-155.38660535,0.00034508,7]
[312066861,1705594262592,-152.28666953,0.00034509,7]
[312066862,1705594262602,-299.97796228,0.0003451,7]
[312066863,1705594262611,-154.92827381,0.00034512,7]
[312066864,1705594262621,-367.93,0.00034518,30]
[312066865,1705594262630,-950.0,0.0003452,7]
[312066866,1705594262639,-500.0,0.0003452,3]
[312066867,1705594262649,-1928.311031,0.00034525,2]
[312066868,1705594262658,-1913.056619,0.00034525,2]
[312066869,1705594262667,-710.383309,0.00034525,2]
[312066870,1705594262678,-484.556389,0.00034525,2]
[312066871,1705594262688,-237.093825,0.00034525,2]
[312066872,1705594262697,-768.711369,0.00034525,2]
[312066873,1705594262707,-150.508268,0.00034525,2]
[312066874,1705594262716,-955.93024,0.00034525,2]
[312066875,1705594262725,-159.852617,0.00034525,2]
[312066876,1705594262736,-223.793663,0.00034525,2]
[312066877,1705594262745,-150.0,0.00034526,120]
[312066878,1705594262754,-154.92827381,0.00034536,7]
[312066879,1705594262763,-500.0,0.0003454,3]
[312066880,1705594262773,-299.97796228,0.00034547,7]
[312066881,1705594262782,-1500.0,0.00034552,2]
[312066882,1705594262791,-500.0,0.0003456,3]
[312066883,1705594262801,-299.97796228,0.00034564,7]
[312066884,1705594262813,-500.0,0.0003458,3]
[312066885,1705594262823,-166.86745678,0.00034584,7]
[312066886,1705594262832,-299.97796228,0.00034592,7]
[312066887,1705594262841,-500.0,0.000346,3]
[312066888,1705594262851,-155.38660535,0.00034602,7]
[312066889,1705594262861,-150.0,0.00034607,2]
[312066890,1705594262871,-500.0,0.0003462,3]
[312066891,1705594262881,-154.92827381,0.00034631,7]
[312066892,1705594262892,-154.92827381,0.00034633,7]
[312066893,1705594262903,-152.50598072,0.0003464,7]
[312066894,1705594262916,-500.0,0.0003464,3]
[312066895,1705594262926,-156.79579039,0.00034642,7]
[312066896,1705594262935,-187.71118693,0.00034649,2]
[312066897,1705594262946,-496166.59699247,0.00034649,2]
[312066898,1705594262956,-268.49018902,0.00034649,2]
[312066899,1705594262966,-476.63,0.00034657,2]
[312066900,1705594262976,-836.48,0.00034657,2]
[312066901,1705594262986,-151.47,0.00034657,2]
[312066902,1705594262995,-200.35,0.00034657,2]
[312066903,1705594263004,-344.95,0.00034657,2]
[312066904,1705594263014,-150.0,0.00034657,2]
[312066905,1705594263025,-150.0,0.00034657,2]
[312066906,1705594263035,-150.0,0.00034657,2]
[312066907,1705594263045,-150.0,0.00034657,2]
[312066908,1705594263055,-150.0,0.00034657,2]
[312066909,1705594263064,-150.0,0.00034657,2]
[312066910,1705594263075,-150.0,0.00034657,2]
[312066911,1705594263085,-1500.0,0.00034658,2]
[312066912,1705594263094,-156.79579039,0.00034658,7]
[312066913,1705594263104,-500.0,0.0003466,3]
[312066914,1705594263114,-1500.0,0.00034665,2]
[312066915,1705594263125,-154.92827381,0.00034669,7]
[312066916,1705594263135,-239.22,0.0003467,2]
[312066917,1705594263145,-151.36864018,0.0003467,7]
[312066918,1705594263156,-160.21827238,0.00034673,7]
[312066919,1705594263166,-17875.0387966,0.00034676,2]
[312066920,1705594263179,-44077.3683795,0.00034676,2]
[312066921,1705594263189,-438.61147087,0.0003468,30]
[312066922,1705594263199,-500.0,0.0003468,3]
[312066923,1705594263209,-500.0,0.000347,3]
[312066924,1705594263219,-150.0,0.000347,6]
[312066925,1705594263230,-101142.84,0.000347,2]
[312066926,1705594263240,-153.53392262,0.00034701,7]
[312066927,1705594263250,-153.84,0.00034703,2]
[312066928,1705594263261,-500.0,0.00034703,14]
[312066929,1705594263271,-911.67,0.00034703,2]
[312066930,1705594263281,-150.63255899,0.00034716,2]
[312066931,1705594263290,-500.0,0.0003472,3]
[312066932,1705594263301,-155.38660535,0.00034725,7]
[312066933,1705594263311,-1315.459092,0.00034736,2]
[312066934,1705594263321,-1238.469382,0.00034736,2]
[312066935,1705594263331,-2791.819976,0.00034736,2]
[312066936,1705594263341,-280.882831,0.00034736,2]
[312066937,1705594263351,-1257.10822,0.00034736,2]
[312066938,1705594263361,-8773.943971,0.00034736,2]
[312066939,1705594263371,-3752.789694,0.00034736,2]
[312066940,1705594263381,-381.196845,0.00034736,2]
[312066941,1705594263391,-1727.491517,0.00034736,2]
[312066942,1705594263401,-1927.966749,0.00034736,2]
[312066943,1705594263411,-5077.409603,0.00034736,2]
[312066944,1705594263422,-367.93,0.00034736,30]
[312066945,1705594263434,-500.0,0.0003474,3]
[312066946,1705594263451,-154.96396345,0.00034743,7]
[312066947,1705594263464,-500.0,0.0003476,3]
[312066948,1705594263475,-1500.0,0.00034773,2]
[312066949,1705594263486,-150.0,0.00034775,2]
[312066950,1705594263496,-150.0,0.00034775,2]
[312066951,1705594263507,-500.0,0.0003478,3]
[312066952,1705594263518,-1500.0,0.00034781,2]
[312066953,1705594263527,-163.42212586,0.00034784,7]
[312066954,1705594263538,-950.0,0.00034794,7]
[312066955,1705594263551,-167.94943573,0.00034795,2]
[312066956,1705594263560,-500.0,0.000348,3]
[312066957,1705594263569,-820.0,0.000348,12]
[312066958,1705594263579,-100665.0,0.00034813,2]
[312066959,1705594263591,-1819.0,0.00034813,2]
[312066960,1705594263602,-389.0,0.00034813,2]
[312066961,1705594263611,-500.0,0.0003482,3]
[312066962,1705594263622,-154.92827381,0.00034821,7]
[312066963,1705594263635,-299.97796228,0.00034828,7]
[312066964,1705594263645,-299.97796228,0.00034831,7]
[312066965,1705594263655,-151.36864023,0.00034834,7]
[312066966,1705594263665,-500.0,0.0003484,3]
[312066967,1705594263676,-151.0,0.00034852,7]
[312066968,1705594263686,-151.0,0.00034852,7]
[312066969,1705594263695,-500.0,0.0003486,3]
[312066970,1705594263705,-160.21827238,0.00034861,7]
[312066971,1705594263715,-1500.0,0.00034866,2]
[312066972,1705594263724,-150.0,0.0003487,4]
[312066973,1705594263734,-8834.6123482,0.00034876,2]
[312066974,1705594263742,-88271.434538,0.00034876,2]
[312066975,1705594263752,-2431.408908,0.00034876,2]
[312066976,1705594263762,-3082.9703436,0.00034876,2]
[312066977,1705594263773,-500.0,0.0003488,3]
[312066978,1705594263785,-155.38660535,0.00034891,7]
[312066979,1705594263795,-156.79579039,0.00034891,7]
[312066980,1705594263808,-12796.1944404,0.000349,4]
[312066981,1705594263818,-500.0,0.000349,6]
[312066982,1705594263827,-514713.3351078,0.000349,5]
[312066983,1705594263836,-344.45520002,0.000349,30]
[312066984,1705594263847,-1000.15111539,0.000349,3]
[312066985,1705594263857,-1000.0,0.000349,16]
[312066986,1705594263867,-150.82535441,0.000349,2]
[312066987,1705594263877,-500.0,0.000349,3]
[312066988,1705594263891,-17708.82127466,0.000349,2]
[312066989,1705594263903,-17708.82127457,0.000349,2]
[312066990,1705594263912,-17708.82127457,0.000349,2]
[312066991,1705594263922,-17708.82127457,0.000349,2]
[312066992,1705594263931,-17708.82127457,0.000349,2]
[312066993,1705594263941,-17708.82127457,0.000349,2]
[312066994,1705594263950,-17708.82127457,0.000349,2]
[312066995,1705594263960,-17708.82127457,0.000349,2]
[312066996,1705594263969,-17708.82127457,0.000349,2]
[312066997,1705594263979,-275.5,0.000349,2]
[312066998,1705594263989,-500.0,0.0003492,3]
[312066999,1705594263998,-36149.8859331,0.00034926,2]
[312067000,1705594264008,-110366.8144707,0.00034926,2]
[312067001,1705594264018,-916.55096289,0.00034934,6]
[312067002,1705594264029,-500.0,0.0003494,3]
[312067003,1705594264039,-1500.0,0.00034942,2]
[312067004,1705594264048,-442787.85,0.00034949,2]
[312067005,1705594264058,-541185.15,0.00034949,2]
[312067006,1705594264068,-124448.85,0.0003495,2]
[312067007,1705594264077,-152104.15,0.0003495,2]
[312067008,1705594264086,-241.171618,0.0003495,7]
[312067009,1705594264096,-1928.311031,0.00034957,2]
[312067010,1705594264106,-1913.056619,0.00034957,2]
[312067011,1705594264115,-710.383309,0.00034957,2]
[312067012,1705594264125,-484.556389,0.00034957,2]
[312067013,1705594264134,-237.093825,0.00034957,2]
[312067014,1705594264144,-768.711369,0.00034957,2]
[312067015,1705594264153,-955.93024,0.00034957,2]
[312067016,1705594264162,-223.793663,0.00034957,2]
[312067017,1705594264171,-500.0,0.0003496,3]
[312067018,1705594264181,-152.28666955,0.0003497,7]
[312067019,1705594264190,-10355.761102,0.00034976,2]
[312067020,1705594264201,-11876.9098557,0.00034976,2]
[312067021,1705594264211,-98534.2400606,0.00034976,2]
[312067022,1705594264221,-108797.0455831,0.00034976,2]
[312067023,1705594264230,-2714.094659,0.00034976,2]
[312067024,1705594264239,-2996.7804101,0.00034976,2]
[312067025,1705594264249,-3453.4182427,0.00034976,2]
[312067026,1705594264258,-3823.8661417,0.00034976,2]
[312067027,1705594264267,-40565.0977207,0.00034976,2]
[312067028,1705594264277,-44980.3095082,0.00034976,2]
[312067029,1705594264286,-121197.7913188,0.00034976,2]
[312067030,1705594264297,-132028.7681668,0.00034976,2]
[312067031,1705594264306,-19629.2267044,0.00034976,2]
[312067032,1705594264318,-21383.4146122,0.00034976,2]
[312067033,1705594264327,-50471.0805058,0.00034976,2]
[312067034,1705594264337,-56864.7926321,0.00034976,2]
[312067035,1705594264347,-576.61402636,0.0003498,3]
[312067036,1705594264357,-633.36378171,0.0003498,3]
[312067037,1705594264366,-854.93744442,0.0003498,3]
[312067038,1705594264375,-500.0,0.0003498,3]
[312067039,1705594264384,-200.0,0.00034987,7]
[312067040,1705594264394,-500.0,0.00034987,6]
[312067041,1705594264403,-200.0,0.00034987,4]
[312067042,1705594264413,-200.0,0.00034987,3]
[312067043,1705594264423,-500.0,0.00034987,5]
[312067044,1705594264432,-1734.38969563,0.0003499,2]
[312067045,1705594264441,-155.38660535,0.00034991,7]
[312067046,1705594264450,-150.01,0.00034998,11]
[312067047,1705594264461,-100000.0,0.00035,5]
[312067048,1705594264471,-448.0666933,0.00035,4]
[312067049,1705594264482,-155.0,0.00035,2]
[312067050,1705594264491,-15733.67649792,0.00035,7]
[312067051,1705594264500,-619.7070336,0.00035,4]
[312067052,1705594264510,-1805.98018781,0.00035,4]
[312067053,1705594264520,-255.63300205,0.00035,4]
[312067054,1705594264529,-155.93978258,0.00035,4]
[312067055,1705594264538,-245504.06564045,0.00035,5]
[312067056,1705594264547,-931.62937557,0.00035,2]
[312067057,1705594264557,-200.0,0.00035,5]
[312067058,1705594264566,-200.0,0.00035,5]
[312067059,1705594264575,-200.0,0.00035,5]
[312067060,1705594264586,-1000.0,0.00035,6]
[312067061,1705594264596,-200.0,0.00035,5]
[312067062,1705594264606,-200.0,0.00035,5]
[312067063,1705594264615,-200.0,0.00035,5]
[312067064,1705594264625,-2500.0,0.00035,7]
[312067065,1705594264633,-250.0,0.00035,2]
[312067066,1705594264643,-1000.0,0.00035,2]
[312067067,1705594264652,-235.93350591,0.00035,2]
[312067068,1705594264662,-1198.73735778,0.00035,5]
[312067069,1705594264671,-300.0,0.00035,5]
[312067070,1705594264739,-213.39226721,0.00035,2]
[312067071,1705594264748,-3830.67213022,0.00035,2]
[312067072,1705594264757,-7400.83231752,0.00035,2]
[312067073,1705594264767,-200.0,0.00035,2]
[312067074,1705594264777,-3496.62162925,0.00035,15]
[312067075,1705594264787,-200.0,0.00035,5]
[312067076,1705594264804,-180.98536813,0.00035,5]
[312067077,1705594264814,-5000.0,0.00035,7]
[312067078,1705594264823,-5000.0,0.00035,7]
[312067079,1705594264832,-5000.0,0.00035,7]
[312067080,1705594264842,-822.96904089,0.00035,6]
[312067081,1705594264853,-632.28,0.00035,7]
[312067082,1705594264863,-1000.0,0.00035,2]
[312067083,1705594264873,-1900.0,0.00035,20]
[312067084,1705594264883,-1600.0,0.00035,20]
[312067085,1705594264893,-1885.36665011,0.00035,14]
[312067086,1705594264903,-5000.0,0.00035,2]
[312067087,1705594264913,-155.0,0.00035,4]
[312067088,1705594264923,-189.0,0.00035,7]
[312067089,1705594264932,-4029124.75032114,0.00035,5]
[312067090,1705594264942,-20993.80292387,0.00035,21]
[312067091,1705594264951,-55898.53680863,0.00035,5]
[312067092,1705594264961,-3900.0,0.00035,7]
[312067093,1705594264970,-200.0,0.00035,5]
[312067094,1705594264980,-200.0,0.00035,5]
[312067095,1705594264993,-200.0,0.00035,5]
[312067096,1705594265002,-10784.26520755,0.00035,4]
[312067097,1705594265011,-191.36886904,0.00035,3]
[312067098,1705594265021,-5000.0,0.00035,4]
[312067099,1705594265032,-300.0,0.00035,2]
[312067100,1705594265042,-500.0,0.00035,6]
[312067101,1705594265051,-11406.0,0.00035,9]
[312067102,1705594265062,-18253.24213344,0.00035,5]
[312067103,1705594265072,-2159.75007846,0.00035,4]
[312067104,1705594265082,-500.0,0.00035,4]
[312067105,1705594265092,-3679.5,0.00035,30]
[312067106,1705594265102,-861.89329957,0.00035,30]
[312067107,1705594265112,-3001.97775907,0.00035,30]
[312067108,1705594265122,-255.393698,0.00035,30]
[312067109,1705594265132,-8000.0,0.00035,3]
[312067110,1705594265143,-1000.0,0.00035,7]
[312067111,1705594265153,-1000.0,0.00035,7]
[312067112,1705594265163,-1094.0,0.00035,7]
[312067113,1705594265173,-1102.53,0.00035,10]
[312067114,1705594265183,-1000.0,0.00035,5]
[312067115,1705594265193,-60419.57002097,0.00035,4]
[312067116,1705594265202,-5925648.30818775,0.00035,30]
[312067117,1705594265212,-1040.0,0.00035,30]
[312067118,1705594265224,-614.92036547,0.00035,4]
[312067119,1705594265235,-521.07339687,0.00035,30]
[312067120,1705594265245,-20000.0,0.00035,2]
[312067121,1705594265255,-3800.0,0.00035,15]
[312067122,1705594265265,-2000.0,0.00035,2]
[312067123,1705594265275,-516.0,0.00035,30]
[312067124,1705594265284,-383768.7,0.00035,5]
[312067125,1705594265294,-5000.0,0.00035,4]
[312067126,1705594265303,-3623.0,0.00035,25]
[312067127,1705594265313,-166.171051,0.00035,6]
[312067128,1705594265323,-166.171052,0.00035,6]
[312067129,1705594265333,-509.841624,0.00035,2]
[312067130,1705594265343,-509.841624,0.00035,2]
[312067131,1705594265353,-300.0,0.00035,8]
[312067132,1705594265363,-3000.0,0.00035,17]
[312067133,1705594265373,-2650.94494893,0.00035,2]
[312067134,1705594265383,-2005.09978809,0.00035,2]
[312067135,1705594265393,-2650.94494893,0.00035,2]
[312067136,1705594265403,-2005.09978809,0.00035,2]
[312067137,1705594265412,-2650.94494893,0.00035,2]
[312067138,1705594265422,-2005.09978809,0.00035,2]
[312067139,1705594265431,-1299.889667,0.00035,2]
[312067140,1705594265441,-1039.9117336,0.00035,2]
[312067141,1705594265450,-1000.0,0.00035,7]
[312067142,1705594265460,-500.0,0.00035,3]
[312067143,1705594265469,-500.0,0.00035,3]
[312067144,1705594265479,-126809.10084728,0.00035,2]
[312067145,1705594265489,-126809.10084728,0.00035,2]
[312067146,1705594265498,-126809.10084728,0.00035,2]
[312067147,1705594265508,-126809.10084728,0.00035,2]
[312067148,1705594265518,-126809.10084728,0.00035,2]
[312067149,1705594265527,-150.0,0.00035,8]
[312067150,1705594265537,-1000.0,0.00035,2]
[312067151,1705594265547,-150.0,0.00035,8]
[312067152,1705594265557,-30000.0,0.00035,10]
[312067153,1705594265568,-159.999999,0.00035,10]
[312067154,1705594265577,-525.0,0.00035,2]
[312067155,1705594265587,-1330.98506067,0.00035,5]
[312067156,1705594265597,-173756.04552972,0.00035,2]
[312067157,1705594265607,-608.45901537,0.00035,2]
[312067158,1705594265617,-300.0,0.00035,2]
[312067159,1705594265626,-32843.7952773,0.00035,4]
[312067160,1705594265636,-2285.5917607,0.00035,2]
[312067161,1705594265645,-23482.78889771,0.00035,2]
[312067162,1705594265655,-321.2,0.00035,4]
[312067163,1705594265664,-2001475.44533142,0.00035,5]
[312067164,1705594265674,-500.0,0.00035,30]
[312067165,1705594265683,-500.0,0.00035,30]
[312067166,1705594265693,-600.0,0.00035,36]
[312067167,1705594265702,-159.98884179,0.00035,2]
[312067168,1705594265712,-2659.77762499,0.00035,30]
[312067169,1705594265722,-154.92827381,0.00035003,7]
[312067170,1705594265732,-3000.0,0.0003501,17]
[312067171,1705594265741,-160.21827238,0.00035012,7]
[312067172,1705594265751,-450.0,0.0003502,3]
[312067173,1705594265761,-5483.901896,0.0003502,17]
[312067174,1705594265770,-154.92827381,0.00035022,7]
[312067175,1705594265780,-518.0,0.00035024,4]
[312067176,1705594265789,-1000.0,0.00035041,10]
[312067177,1705594265801,-500.0,0.00035041,10]
[312067178,1705594265813,-299.97796228,0.00035044,7]
[312067179,1705594265824,-170.47947396,0.00035049,7]
[312067180,1705594265834,-152.41865419,0.00035054,7]
[312067181,1705594265843,-1500.0,0.00035056,2]
[312067182,1705594265853,-2029.28,0.00035068,4]
[312067183,1705594265863,-500.0,0.00035068,4]
[312067184,1705594265873,-950.0,0.00035068,7]
[312067185,1705594265883,-1754.30630682,0.00035068,30]
[312067186,1705594265894,-1380.929869,0.00035068,14]
[312067187,1705594265904,-154.92827381,0.00035073,7]
[312067188,1705594265913,-155.38660535,0.00035084,7]
[312067189,1705594265923,-5000.0,0.00035086,2]
[312067190,1705594265933,-154.92827381,0.0003509,7]
[312067191,1705594265943,-156.79579039,0.0003509,7]
[312067192,1705594265953,-18604.0,0.0003509,3]
[312067193,1705594265962,-1200.0,0.000351,2]
[312067194,1705594265972,-157.8,0.000351,2]
[312067195,1705594265982,-157.8,0.000351,2]
[312067196,1705594265991,-157.8,0.000351,2]
[312067197,1705594266001,-157.8,0.000351,2]
[312067198,1705594266010,-157.8,0.000351,2]
[312067199,1705594266020,-157.8,0.000351,2]
[312067200,1705594266031,-157.8,0.000351,2]
[312067201,1705594266040,-157.8,0.000351,2]
[312067202,1705594266050,-157.8,0.000351,2]
[312067203,1705594266060,-156.79579039,0.00035104,7]
[312067204,1705594266069,-1500.0,0.00035129,2]
[312067205,1705594266080,-231.65266962,0.00035137,30]
[312067206,1705594266089,-1000000.0,0.00035142,30]
[312067207,1705594266099,-156.79579039,0.00035145,7]
[312067208,1705594266108,-1315.459092,0.00035155,2]
[312067209,1705594266118,-1238.469382,0.00035155,2]
[312067210,1705594266127,-2791.819976,0.00035155,2]
[312067211,1705594266137,-280.882831,0.00035155,2]
[312067212,1705594266146,-1257.10822,0.00035155,2]
[312067213,1705594266155,-8773.943971,0.00035155,2]
[312067214,1705594266164,-3752.789694,0.00035155,2]
[312067215,1705594266174,-381.196845,0.00035155,2]
[312067216,1705594266184,-1727.491517,0.00035155,2]
[312067217,1705594266194,-1927.966749,0.00035155,2]
[312067218,1705594266204,-5077.409603,0.00035155,2]
[312067219,1705594266214,-100665.0,0.00035157,2]
[312067220,1705594266223,-1819.0,0.00035157,2]
[312067221,1705594266233,-389.0,0.00035157,2]
[312067222,1705594266242,-299.97796232,0.00035187,7]
[312067223,1705594266252,-153.53392262,0.00035189,7]
[312067224,1705594266261,-157.34854406,0.000352,2]
[312067225,1705594266271,-2572.43234515,0.000352,5]
[312067226,1705594266281,-151.0,0.000352,2]
[312067227,1705594266291,-150.1,0.000352,2]
[312067228,1705594266300,-150.524692,0.000352,4]
[312067229,1705594266310,-1997.38,0.000352,2]
[312067230,1705594266320,-156.0,0.000352,24]
[312067231,1705594266330,-150.0,0.000352,7]
[312067232,1705594266341,-310.72,0.000352,2]
[312067233,1705594266350,-225.5216828,0.00035204,4]
[312067234,1705594266360,-155.0,0.00035204,4]
[312067235,1705594266370,-156.79579039,0.00035211,7]
[312067236,1705594266379,-155.38660552,0.00035219,7]
[312067237,1705594266389,-1500.0,0.00035226,2]
[312067238,1705594266398,-152.50598073,0.00035226,7]
[312067239,1705594266407,-154.92827381,0.00035226,7]
[312067240,1705594266417,-5000.0,0.00035226,20]
[312067241,1705594266426,-154.92827386,0.00035227,7]
[312067242,1705594266437,-3994.3,0.00035233,3]
[312067243,1705594266446,-156.79579039,0.0003524,7]
[312067244,1705594266455,-14282.31226456,0.00035242,2]
[312067245,1705594266464,-6000.0,0.00035242,2]
[312067246,1705594266473,-13974.96433406,0.00035242,2]
[312067247,1705594266483,-340.42107678,0.00035242,2]
[312067248,1705594266493,-200.0,0.00035242,2]
[312067249,1705594266503,-598.53281366,0.00035242,2]
[312067250,1705594266512,-205.22877365,0.00035242,2]
[312067251,1705594266521,-1164.49986573,0.00035242,3]
[312067252,1705594266530,-165203.07534803,0.00035242,2]
[312067253,1705594266540,-460.42712585,0.00035242,2]
[312067254,1705594266549,-14548.74776278,0.00035242,2]
[312067255,1705594266559,-226.65571552,0.00035242,2]
[312067256,1705594266569,-2036.27735135,0.00035242,2]
[312067257,1705594266578,-386.10675882,0.00035242,2]
[312067258,1705594266587,-523.51088939,0.00035242,2]
[312067259,1705594266596,-990.84132134,0.00035242,2]